fUSD/lending_fUSD_20240404
["ID","MTS","AMOUNT","RATE_DAILY","PERIOD"]
[321473389,1712207443639,-1441.07880833,0.000249,2]
[321473390,1712207443651,-25877.80543685,0.000249,2]
[321473391,1712207443662,-29650.78478372,0.000249,2]
[321473397,1712207446194,-378.28823474,0.000249,2]
[321473398,1712207446205,-255.0,0.000249,2]
[321473399,1712207446216,-1006.8,0.000249,2]
[321473400,1712207446310,-286.09779877,0.000249,2]
[321473409,1712207535342,-1941.53813649,0.00024798,2]
[321473410,1712207535364,-5335.99402931,0.00024799,2]
[321473411,1712207562058,212.41976163,0.00024721,2]
[321473412,1712207590990,999.999999,0.00023569,2]
[321473413,1712207637565,8293.1505,0.00024711,2]
[321473414,1712207679467,601.94037362,0.00024709,2]
[321473415,1712207684472,432.0402,0.000248,2]
[321473416,1712207753510,32182.91699995,0.00024711,2]
[321473417,1712207881873,250.0,0.00023,3]
[321473424,1712208554281,-394.49,0.00021791,2]
[321473425,1712208554303,-300.0,0.00023718,2]
[321473426,1712208554325,-23900.0,0.00023719,2]
[321473427,1712208554346,-469.39,0.00023773,2]
[321473428,1712208554366,-740.21,0.00023816,2]
[321473429,1712208554388,-153.19,0.00023888,2]
[321473430,1712208554410,-1000.0,0.00023889,2]
[321473431,1712208554432,-394.49,0.00024055,2]
[321473432,1712208554453,-154.37278023,0.0002451,2]
[321473433,1712208554474,-154.37278014,0.00024531,2]
[321473434,1712208554495,-154.37278014,0.00024551,2]
[321473435,1712208554516,-154.37278014,0.00024572,2]
[321473436,1712208554537,-154.37278014,0.00024593,2]
[321473437,1712208554558,-6186.40827718,0.00024611,2]
[321473438,1712208554579,-822.97711943,0.00024611,2]
[321473439,1712208554601,-154.37278014,0.00024614,2]
[321473440,1712208554622,-154.37278014,0.00024634,2]
[321473441,1712208554643,-6186.40827714,0.00024643,2]
[321473442,1712208554665,-822.97711936,0.00024643,2]
[321473443,1712208554686,-154.37278014,0.00024655,2]
[321473444,1712208554706,-6186.40827714,0.00024675,2]
[321473445,1712208554728,-822.97711936,0.00024675,2]
[321473446,1712208554747,-154.37278014,0.00024676,2]
[321473447,1712208554768,-154.37278014,0.00024696,2]
[321473448,1712208554788,-6186.40827714,0.00024707,2]
[321473449,1712208554809,-822.97711936,0.00024707,2]
[321473450,1712208554829,-203.65688815,0.0002471,2]
[321473451,1712208554851,-20622.66240038,0.00024711,2]
[321473452,1712208558173,-6924.846,0.00024711,2]
[321473467,1712208632409,-1616.31417857,0.00024711,2]
[321473468,1712208632422,-4473.85264612,0.00024711,2]
[321473469,1712208632433,-2846.60810757,0.00024711,2]
[321473470,1712208632525,-969.45652537,0.00024711,2]
[321473471,1712208632537,-3367.93087916,0.00024711,2]
[321473472,1712208632548,-919.32315803,0.00024711,2]
[321473473,1712208632559,-833.50211302,0.00024711,2]
[321473474,1712208632571,-539.69020108,0.00024711,2]
[321473475,1712208632699,-753.66321503,0.00024711,2]
[321473476,1712208632710,-410.52500001,0.00024711,2]
[321473477,1712208632758,-5582.64547712,0.00024711,2]
[321473478,1712208632770,-393.186,0.00024711,2]
[321473506,1712208638387,-161008.85659859,0.00024711,2]
[321473507,1712208638397,-500.0,0.00024711,2]
[321473508,1712208638406,-154.37278014,0.00024717,2]
[321473509,1712208638415,-154.37278014,0.00024738,2]
[321473510,1712208638424,-6186.40827714,0.00024739,2]
[321473511,1712208638434,-822.97711936,0.00024739,2]
[321473512,1712208638444,-154.37278014,0.00024759,2]
[321473513,1712208638453,-6186.40827714,0.00024772,2]
[321473514,1712208638462,-822.97711936,0.00024772,2]
[321473515,1712208638472,-154.37278014,0.00024779,2]
[321473516,1712208638481,-154.37278014,0.000248,2]
[321473517,1712208638489,-244.74,0.00024801,2]
[321473518,1712208638499,-244.74,0.00024801,2]
[321473519,1712208638508,-6186.40827714,0.00024804,2]
[321473520,1712208638517,-822.97711936,0.00024804,2]
[321473521,1712208638526,-365.16917518,0.00024809,2]
[321473522,1712208638536,-499.99,0.00024809,2]
[321473523,1712208638545,-466.47388374,0.00024809,2]
[321473524,1712208638554,-241773.50905036,0.00024811,2]
[321473525,1712208638564,-6186.40827714,0.00024836,2]
[321473526,1712208638573,-822.97711936,0.00024836,2]
[321473527,1712208638582,-6186.40827714,0.00024868,2]
[321473528,1712208638591,-822.97711936,0.00024868,2]
[321473529,1712208638601,-877.40259166,0.0002488,2]
[321473530,1712208638610,-243.01224623,0.0002488,2]
[321473531,1712208638620,-877.40259164,0.00024882,2]
[321473532,1712208638629,-877.40259164,0.00024884,2]
[321473533,1712208638638,-243.01224621,0.00024885,2]
[321473534,1712208638647,-877.40259164,0.00024885,2]
[321473535,1712208638656,-877.40259164,0.00024887,2]
[321473536,1712208638666,-877.40259164,0.00024889,2]
[321473537,1712208638675,-243.01224621,0.0002489,2]
[321473538,1712208638683,-877.40259164,0.00024891,2]
[321473539,1712208638693,-877.40259164,0.00024893,2]
[321473540,1712208638703,-877.40259164,0.00024895,2]
[321473541,1712208638712,-243.01224621,0.00024895,2]
[321473542,1712208638721,-877.40259164,0.00024896,2]
[321473543,1712208638730,-877.40259164,0.00024898,2]
[321473544,1712208638740,-10000.0,0.000249,2]
[321473545,1712208638749,-1000.0,0.000249,2]
[321473546,1712208638758,-877.40259164,0.000249,2]
[321473547,1712208638767,-243.01224621,0.000249,2]
[321473548,1712208638776,-6186.40827714,0.000249,2]
[321473549,1712208638785,-7500.0,0.000249,2]
[321473550,1712208638794,-196.03543,0.000249,2]
[321473552,1712208638804,-822.97711936,0.000249,2]
[321473553,1712208638813,-916.96748738,0.000249,2]
[321473554,1712208638822,-177.74377364,0.000249,2]
[321473555,1712208638831,-601.7899112,0.000249,2]
[321473556,1712208638843,-1260.25259388,0.000249,2]
[321473557,1712208638853,-244.74,0.0002497,2]
[321473558,1712208638862,-244.74,0.0002497,2]
[321473559,1712208638871,-244.74,0.0002497,2]
[321473560,1712208638880,-308030.1395509,0.0002498,2]
[321473561,1712208638888,-335325.81075788,0.0002498,2]
[321473562,1712208638899,-244.74,0.0002498,2]
[321473563,1712208638908,-102658.60969683,0.0002499,2]
[321473564,1712208638918,-244.74,0.0002499,2]
[321473565,1712208638927,-244.74,0.0002499,2]
[321473566,1712208638936,-244.74,0.0002499,2]
[321473567,1712208638945,-244.74,0.0002499,2]
[321473568,1712208638954,-1010.864,0.00024999,2]
[321473569,1712208638964,-231.26006153,0.00025,2]
[321473570,1712208638973,-2480833.19991399,0.00025,2]
[321473571,1712208638988,-200402.81061603,0.00025,2]
[321473572,1712208639008,-1227.35830472,0.00025,2]
[321473573,1712208639030,-57984.6196,0.00025,2]
[321473574,1712208639041,-1022.94722867,0.00025,2]
[321473575,1712208639063,-49507.8704,0.00025,2]
[321473576,1712208639088,-12078.49925504,0.00025,2]
[321473579,1712208640418,-370.32793057,0.00025,2]
[321473580,1712208640431,-6528.0,0.00025,2]
[321473584,1712208643737,-311.7686698,0.00025,2]
[321473585,1712208643786,-360070.44276603,0.00025,2]
[321473598,1712208646392,-380.4460244,0.00025,2]
[321473599,1712208646523,-880.592753,0.00025,2]
[321473600,1712208646535,-1657.80562806,0.00025,2]
[321473601,1712208646582,-385.40562752,0.00025,2]
[321473602,1712208646698,-785.29483787,0.00025,2]
[321473603,1712208646709,-435.55366481,0.00025,2]
[321473604,1712208646721,-999.02301719,0.00025,2]
[321473657,1712209439733,5372.04111444,0.00021835,2]
[321473658,1712209466539,390.93,0.00021559,2]
[321473659,1712209524937,318.55745475,0.00021559,2]
[321473660,1712209537310,-1648.3787,0.00021836,2]
[321473661,1712209537331,-477.67978383,0.00022497,2]
[321473662,1712209537353,-193.51809284,0.00022498,2]
[321473663,1712209537374,-300.0,0.00023503,2]
[321473664,1712209537395,-23900.0,0.00023504,2]
[321473665,1712209537415,-164.59,0.00023598,2]
[321473666,1712209537436,-163.98,0.00023772,2]
[321473667,1712209537457,-163.98,0.00023802,2]
[321473668,1712209537477,-390.93,0.00023823,2]
[321473669,1712209537498,-1000.0,0.00023824,2]
[321473670,1712209537519,-163.98,0.00023831,2]
[321473671,1712209537543,-163.98,0.00023861,2]
[321473672,1712209537566,-1167.87,0.00023874,2]
[321473673,1712209537587,-229.16,0.00023881,2]
[321473674,1712209537607,-163.98,0.00023891,2]
[321473675,1712209537629,-169.5,0.00023903,2]
[321473676,1712209537648,-177.37,0.00024088,2]
[321473677,1712209537667,-150.0,0.00024172,2]
[321473678,1712209537688,-2792.3902,0.00024539,2]
[321473679,1712209537709,-244.39223019,0.00024627,2]
[321473680,1712209537728,-473.75,0.00024637,2]
[321473681,1712209537748,-617.95981421,0.00024638,2]
[321473682,1712209537768,-18935.94729199,0.00024639,2]
[321473683,1712209538928,321.58409194,0.00021559,2]
[321473684,1712209684938,250.0,0.00023,3]
[321473685,1712209726226,4552.33979283,0.00040191,30]
[321473686,1712209756123,-999.59,0.00023964,2]
[321473687,1712209756145,-1676.33126882,0.00024557,2]
[321473688,1712209756167,-1676.33126878,0.00024595,2]
[321473689,1712209756188,-1676.33126878,0.00024633,2]
[321473690,1712209756209,-300.0,0.00024638,2]
[321473691,1712209756231,-34200.66419362,0.00024639,2]
[321473692,1712209768119,-22188.288,0.00024639,2]
[321473695,1712209831567,-300.0,0.00024638,2]
[321473696,1712209831578,-12.86787145,0.00024639,2]
[321473697,1712209831590,-270.56787364,0.00024639,2]
[321473698,1712209831675,-811.05669613,0.00024639,2]
[321473699,1712209831732,-756.27288357,0.00024639,2]
[321473700,1712209831744,-6292.72099817,0.00024639,2]
[321473701,1712209831786,-20636.66839561,0.00024639,2]
[321473702,1712209831800,-319.71799211,0.00024639,2]
[321473703,1712209831922,-2769.97256288,0.00024639,2]
[321473704,1712209831935,-10286.99241862,0.00024639,2]
[321473706,1712209837560,-53932.62322221,0.00024639,2]
[321473707,1712209837571,-1676.33126878,0.00024671,2]
[321473708,1712209837583,-1676.33126878,0.00024709,2]
[321473709,1712209837595,-1676.33126878,0.00024748,2]
[321473710,1712209837606,-163.36286,0.0002475,2]
[321473711,1712209837619,-1676.33126878,0.00024786,2]
[321473712,1712209837633,-1676.33126878,0.00024824,2]
[321473713,1712209837643,-1676.33126878,0.00024862,2]
[321473714,1712209837655,-10000.0,0.000249,2]
[321473715,1712209837668,-245.9626,0.000249,2]
[321473716,1712209837679,-1052.88310997,0.000249,2]
[321473717,1712209837690,-3900.0,0.000249,2]
[321473718,1712209837703,-1676.33126878,0.000249,2]
[321473719,1712209837715,-7500.0,0.000249,2]
[321473720,1712209837727,-225.15925159,0.000249,2]
[321473721,1712209837740,-211.27569698,0.00024989,2]
[321473722,1712209837754,-157.44,0.00024989,2]
[321473723,1712209837765,-157.44,0.00024989,2]
[321473724,1712209837776,-157.44,0.0002499,2]
[321473725,1712209837786,-157.44,0.0002499,2]
[321473726,1712209837797,-157.44,0.0002499,2]
[321473727,1712209837808,-157.44,0.0002499,2]
[321473728,1712209837818,-276.0950677,0.00024991,2]
[321473729,1712209837830,-92124.8814901,0.00024991,2]
[321473730,1712209837841,-4473.9988727,0.00024991,2]
[321473731,1712209837853,-400.0,0.00024998,2]
[321473732,1712209837865,-296.75080968,0.00024998,2]
[321473733,1712209837877,-156.15638538,0.00024998,2]
[321473734,1712209837887,-686.76932778,0.00024998,2]
[321473735,1712209837899,-800.8930136,0.00024998,2]
[321473736,1712209837911,-436735.71824681,0.00024999,2]
[321473737,1712209837922,-209.65986286,0.00024999,2]
[321473738,1712209837934,-208.13405538,0.00025,2]
[321473739,1712209837944,-1569140.37864206,0.00025,2]
[321473740,1712209837958,-500644.39575863,0.00025,2]
[321473741,1712209837993,-39987.9992,0.00025,2]
[321473751,1712209838322,-88943.74150429,0.00025,2]
[321473754,1712209839616,-354.50487989,0.00024899,2]
[321473755,1712209839631,-300.23348249,0.00025,2]
[321473756,1712209839727,-577.06849791,0.00025,2]
[321473757,1712209839890,-944.2650947,0.00025,2]
[321473766,1712209842595,-191.14823381,0.000249,2]
[321473767,1712209842605,-446578.03539628,0.00025,2]
[321473768,1712209842827,-5093.43579419,0.00025,2]
[321473786,1712209843622,-469.251586,0.00025,2]
[321473810,1712209845888,-219.95300718,0.00024891,2]
[321473811,1712209845897,-18209.11985842,0.00025,2]
[321473812,1712209845947,-257.66086581,0.00025,2]
[321473813,1712209845966,-952.75410172,0.00025,2]
[321473814,1712209845977,-1986.41,0.00025,2]
[321473815,1712210014194,153.84,0.00024097,10]
[321473816,1712210014323,153.84,0.00026459,10]
[321473817,1712210059779,509.42091949,0.0002,2]
[321473819,1712210656544,1120.48,0.00021711,2]
[321473820,1712210844114,-1941.53813649,0.00023608,2]
[321473821,1712210844135,-300.0,0.00023609,2]
[321473822,1712210844156,-2607.85386348,0.0002361,2]
[321473823,1712210847096,-21292.14613652,0.0002361,2]
[321473824,1712210847118,-550.54,0.00023624,2]
[321473825,1712210847138,-1172.06,0.00023624,2]
[321473826,1712210847159,-209.19,0.00023633,2]
[321473827,1712210847180,-500.0,0.00023673,2]
[321473828,1712210847201,-2689.59,0.00023702,2]
[321473829,1712210847313,-500.0,0.00023721,2]
[321473830,1712210847334,-200.0,0.00023755,2]
[321473831,1712210847354,-2342.61,0.00023822,2]
[321473832,1712210847375,-1000.0,0.00023953,2]
[321473833,1712210847396,-1970.99,0.00023969,2]
[321473834,1712210847417,-1120.48,0.00023975,2]
[321473835,1712210847442,-161.22,0.00024014,2]
[321473836,1712210847462,-764.703,0.000247,2]
[321473837,1712210847482,-1000.0,0.000247,2]
[321473838,1712210847503,-1184.34,0.000247,2]
[321473839,1712210847524,-160.10691131,0.00024703,2]
[321473840,1712210847544,-2818.36997687,0.00024706,2]
[321473841,1712210847564,-150.41187289,0.00024712,2]
[321473842,1712210847588,-165.29,0.00024731,2]
[321473843,1712210847612,-150.41187285,0.00024743,2]
[321473844,1712210847635,-206.88880586,0.0002475,2]
[321473845,1712210847657,-455.9807,0.0002475,2]
[321473846,1712210847678,-150.41187285,0.00024775,2]
[321473847,1712210847701,-160.23173027,0.00024791,2]
[321473848,1712210847722,-531.06744537,0.00024798,2]
[321473849,1712210847744,-3326.875111,0.000248,2]
[321473850,1712210847766,-27078.85762531,0.000248,2]
[321473851,1712210945272,-1000.0,0.00024342,2]
[321473852,1712210945294,-197.95770648,0.00024706,2]
[321473853,1712210945316,-160.23173026,0.00024706,2]
[321473854,1712210945337,-2818.36997679,0.00024728,2]
[321473855,1712210945359,-197.95770645,0.00024728,2]
[321473856,1712210945381,-300.0,0.00024748,2]
[321473857,1712210945403,-1287.20908002,0.00024749,2]
[321473858,1712210949187,-1531.16089677,0.00024749,2]
[321473859,1712210949212,-197.95770645,0.00024749,2]
[321473860,1712210949232,-206.88880587,0.0002475,2]
[321473861,1712210949254,-2818.36997679,0.00024771,2]
[321473862,1712210949275,-197.95770645,0.00024771,2]
[321473863,1712210949299,-773.0687912,0.00024792,2]
[321473864,1712210952585,-2045.30118559,0.00024792,2]
[321473865,1712210952606,-197.95770645,0.00024792,2]
[321473866,1712210952627,-1000.0,0.00024799,2]
[321473867,1712210952648,-220.30664796,0.00024799,2]
[321473873,1712211032153,-450.66010641,0.00024706,2]
[321473874,1712211032162,-40.5272435,0.00024798,2]
[321473875,1712211032174,-259.4727565,0.00024798,2]
[321473876,1712211032183,-265.3832435,0.00024799,2]
[321473877,1712211032194,-108.33747746,0.00024799,2]
[321473878,1712211032203,-221.81819831,0.00024799,2]
[321473882,1712211037786,-1502.96929863,0.00024799,2]
[321473883,1712211037882,-2854.61254692,0.00024799,2]
[321473884,1712211038061,-40.2213409,0.00024799,2]
[321473885,1712211038072,-7560.63265035,0.000248,2]
[321473893,1712211038181,-1165953.03221484,0.000248,2]
[321473895,1712211038191,-150.41187285,0.00024806,2]
[321473897,1712211038201,-2818.36997679,0.00024814,2]
[321473898,1712211038210,-197.95770645,0.00024814,2]
[321473899,1712211038219,-2818.36997679,0.00024835,2]
[321473900,1712211038229,-197.95770645,0.00024835,2]
[321473901,1712211038240,-150.41187285,0.00024837,2]
[321473902,1712211038250,-343.69,0.00024856,2]
[321473903,1712211038258,-518.71,0.00024856,2]
[321473904,1712211038270,-150.0,0.00024856,2]
[321473905,1712211038279,-2818.36997679,0.00024857,2]
[321473906,1712211038288,-197.95770645,0.00024857,2]
[321473907,1712211038297,-150.41187285,0.00024869,2]
[321473908,1712211038307,-2818.36997679,0.00024878,2]
[321473909,1712211038316,-197.95770645,0.00024878,2]
[321473910,1712211038326,-1095.6091,0.00024899,2]
[321473911,1712211038336,-500.0,0.00024899,2]
[321473912,1712211038345,-10000.0,0.000249,2]
[321473913,1712211038355,-245000.0,0.000249,2]
[321473914,1712211038365,-150.41187285,0.000249,2]
[321473915,1712211038375,-2818.36997679,0.000249,2]
[321473916,1712211038384,-197.95770645,0.000249,2]
[321473917,1712211038394,-7500.0,0.000249,2]
[321473918,1712211038403,-458.48374371,0.000249,2]
[321473919,1712211038413,-69970.0,0.00024986,2]
[321473920,1712211038423,-69272.68250696,0.0002499,2]
[321473921,1712211038432,-150.01,0.00024999,2]
[321473922,1712211038442,-4193.36498056,0.00024999,2]
[321473923,1712211038452,-184125.25446757,0.00024999,2]
[321473924,1712211038461,-213.01621224,0.00025,2]
[321473925,1712211038471,-16058035.67851432,0.00025,2]
[321473926,1712211038483,-701047.20637466,0.00025,2]
[321473946,1712211039956,-869.53851603,0.00025,2]
[321473947,1712211039987,-133082.96044606,0.00025,2]
[321473948,1712211040162,-631.907982,0.00025,2]
[321473949,1712211040173,-271.809001,0.00025,2]
[321473950,1712211040185,-1087.29,0.00025,2]
[321473958,1712211043101,-747.52170146,0.00025,2]
[321473959,1712211043112,-7011.86870607,0.00025,2]
[321473960,1712211043124,-6185.45398235,0.00025,2]
[321473963,1712211045728,-253.13495324,0.00024999,2]
[321473964,1712211045738,-169.89214474,0.00024999,2]
[321473965,1712211045750,-790.12443875,0.00024999,2]
[321473966,1712211045790,-413.6125644,0.00024999,2]
[321473967,1712211046485,-1378.30465646,0.00024999,2]
[321473968,1712211046503,-43.64284936,0.00024999,2]
[321473969,1712211046513,-42401.50676613,0.00025,2]
[321473970,1712211071014,365.93033941,0.00019998,2]
[321473971,1712211217242,-5959.82587725,0.00022374,2]
[321473975,1712211486714,250.0,0.00023,3]
[321473977,1712211943376,-365.54201297,0.00021964,2]
[321473978,1712212030198,-657.66798703,0.00021964,2]
[321473979,1712212030220,-1061.56446398,0.00022374,2]
[321473980,1712212030241,-150.0,0.00023,2]
[321473981,1712212030267,-589.26253576,0.00023499,2]
[321473982,1712212030290,-800.0,0.00023747,2]
[321473983,1712212030310,-1792.38,0.00023752,2]
[321473984,1712212030333,-300.0,0.00023769,2]
[321473985,1712212030355,-2206.43389828,0.0002377,2]
[321473986,1712212148081,-557.3474485,0.00022076,2]
[321473987,1712212151345,-314.71985634,0.00022076,2]
[321473988,1712212163861,-99.97269516,0.00022076,2]
[321473989,1712212163883,-279.8934342,0.00023178,2]
[321473990,1712212163906,-300.0,0.00023769,2]
[321473991,1712212163928,-15345.30610172,0.0002377,2]
[321473992,1712212163948,-275.27,0.00023842,2]
[321473993,1712212163970,-161.22,0.00023938,2]
[321473994,1712212163990,-2483.29,0.00023973,2]
[321473995,1712212164010,-200.0,0.00024084,2]
[321473996,1712212164032,-334.77476892,0.00024335,2]
[321473997,1712212170836,-1307.71523108,0.00024335,2]
[321473998,1712212170858,-972.04,0.0002434,2]
[321473999,1712212170881,-170.8187026,0.00024649,2]
[321474000,1712212170902,-156.66,0.00024678,2]
[321474001,1712212170922,-1194.03258538,0.00024698,2]
[321474002,1712212170945,-155.62876582,0.00024699,2]
[321474003,1712212170966,-983.02835353,0.00024699,2]
[321474004,1712212170989,-52910.32508676,0.000247,2]
[321474009,1712212232223,-275.27,0.00024295,2]
[321474010,1712212232233,-1368.74,0.00024316,2]
[321474011,1712212232242,-3252.61248985,0.000247,2]
[321474012,1712212232276,-562.34159793,0.000247,2]
[321474013,1712212232287,-313.94261921,0.000247,2]
[321474014,1712212232298,-737.77704635,0.000247,2]
[321474015,1712212232310,-23610.00304314,0.000247,2]
[321474016,1712212232329,-259.63729616,0.000247,2]
[321474017,1712212232358,-4903.46776207,0.000247,2]
[321474036,1712212232898,-7536.81673122,0.000247,2]
[321474037,1712212232909,-1380.44026994,0.000247,2]
[321474038,1712212232921,-873.58,0.000247,2]
[321474039,1712212232932,-7378.61850945,0.000247,2]
[321474040,1712212232956,-1027.69832823,0.000247,2]
[321474041,1712212232967,-259.94301548,0.000247,2]
[321474042,1712212232979,-885.9549519,0.000247,2]
[321474043,1712212232991,-1041.76,0.000247,2]
[321474066,1712212237942,-519.47919292,0.000247,2]
[321474068,1712212237955,-7049.9,0.000247,2]
[321474069,1712212237968,-8851.81575939,0.000247,2]
[321474070,1712212237979,-254.28576784,0.00024749,2]
[321474071,1712212237990,-92096.52738152,0.0002475,2]
[321474072,1712212238000,-379.98391,0.0002475,2]
[321474073,1712212238010,-500.0,0.000248,2]
[321474074,1712212238024,-9589.6215,0.000249,2]
[321474075,1712212238038,-160.10691131,0.000249,2]
[321474076,1712212238049,-7500.0,0.000249,2]
[321474077,1712212238060,-252.00140498,0.000249,2]
[321474078,1712212238071,-4099.24478178,0.00024974,2]
[321474079,1712212238082,-59472.172988,0.00024995,2]
[321474080,1712212238093,-2861.9375039,0.00024995,2]
[321474081,1712212238104,-937.0945809,0.00024995,2]
[321474082,1712212238117,-12746.1371773,0.00024995,2]
[321474083,1712212238128,-313.47574048,0.00024997,2]
[321474084,1712212238139,-231.36444899,0.00024997,2]
[321474085,1712212238150,-11240.57827249,0.00024998,2]
[321474086,1712212238161,-1441.30536919,0.00024998,2]
[321474087,1712212238173,-33031.51033159,0.00024999,2]
[321474088,1712212238184,-7124.98379098,0.00024999,2]
[321474089,1712212238196,-157.77216376,0.00024999,2]
[321474090,1712212238208,-544.23225178,0.00024999,2]
[321474091,1712212238219,-1863.71776914,0.00024999,2]
[321474092,1712212238231,-1859.0,0.00025,2]
[321474093,1712212238241,-191.71459101,0.00025,2]
[321474094,1712212238252,-443346.62197833,0.00025,2]
[321474095,1712212238294,-932.78185583,0.00025,2]
[321474096,1712212238398,-111767.12506655,0.00025,2]
[321474097,1712212238410,-516.075,0.00025,2]
[321474099,1712212238488,-481.706008,0.00025,2]
[321474100,1712212238510,-76431.50553759,0.00025,2]
[321474119,1712212240008,-539.06283141,0.00025,2]
[321474120,1712212240124,-121919.09999998,0.00025,2]
[321474121,1712212240315,-1283.95364999,0.00025,2]
[321474129,1712212243807,-3301.2,0.00025,2]
[321474130,1712212243846,-5180.35167514,0.00025,2]
[321474131,1712212243865,-1163.88841498,0.00025,2]
[321474134,1712212246252,-2892.2,0.00025,2]
[321474135,1712212578606,10000.0,0.000281,120]
[321474136,1712212589152,10000.0,0.000281,120]
[321474137,1712212687141,299.99,0.0002407,7]
[321474138,1712213246173,-1238.05701244,0.0002189,2]
[321474139,1712213246195,-537.70067238,0.00021891,2]
[321474140,1712213246216,-915.47,0.00021892,2]
[321474141,1712213246237,-200.0,0.00023139,2]
[321474142,1712213246258,-1140.61,0.00023186,2]
[321474143,1712213246279,-1769.76,0.00023232,2]
[321474144,1712213246299,-1756.36295204,0.00023303,2]
[321474145,1712213276720,869.69,0.0002154,2]
[321474146,1712213302364,250.0,0.00023,3]
[321474147,1712213371157,-1500.0,0.000233,2]
[321474148,1712213371179,-300.0,0.00023301,2]
[321474149,1712213371199,-4793.1522707,0.00023302,2]
[321474150,1712213398426,500.0,0.0002183,2]
[321474151,1712213416668,500.0,0.00029,10]
[321474154,1712213432223,-1105.79495962,0.00023302,2]
[321474155,1712213432284,-651.32017171,0.00023302,2]
[321474156,1712213432305,-580.55865504,0.00023302,2]
[321474157,1712213432348,-28011.32818647,0.00023302,2]
[321474158,1712213432358,-2220.64175222,0.00023303,2]
[321474159,1712213432406,-6574.91475997,0.00023303,2]
[321474164,1712213438248,-4489.63379028,0.00023303,2]
[321474165,1712213438333,-526.46684807,0.00023303,2]
[321474166,1712213438345,-5359.97989742,0.00023303,2]
[321474167,1712213438354,-230.66,0.00023422,2]
[321474168,1712213438364,-360.0,0.00023438,2]
[321474169,1712213438374,-165.43683633,0.00023461,2]
[321474170,1712213438384,-3664.75384173,0.00023464,2]
[321474171,1712213438394,-186.95863119,0.00023471,2]
[321474172,1712213438404,-217.35356112,0.00023472,2]
[321474173,1712213438413,-499.99,0.00023472,2]
[321474174,1712213438422,-1991.28,0.00023474,2]
[321474175,1712213438432,-22339.53,0.00023474,2]
[321474176,1712213438441,-500.0,0.00023499,2]
[321474177,1712213438450,-161.22,0.0002355,2]
[321474178,1712213438460,-640.0,0.00023636,2]
[321474179,1712213438470,-2033.24895769,0.00023747,2]
[321474180,1712213438479,-748.32846953,0.00023749,2]
[321474181,1712213438489,-869.69,0.00023804,2]
[321474182,1712213438499,-188.17933595,0.00024498,2]
[321474183,1712213438509,-11240.57827249,0.00024649,2]
[321474184,1712213438518,-24473.7054,0.0002465,2]
[321474185,1712213438528,-1000.0,0.0002465,2]
[321474186,1712213438537,-11619.9003,0.0002465,2]
[321474187,1712213438546,-2500.0,0.0002465,2]
[321474188,1712213438556,-158.8287295,0.00024699,2]
[321474189,1712213438566,-847.77628718,0.00024699,2]
[321474190,1712213438575,-254.28576784,0.00024746,2]
[321474191,1712213438585,-92096.52738152,0.0002475,2]
[321474192,1712213438594,-800.0,0.00024799,2]
[321474193,1712213438604,-500.0,0.00024799,2]
[321474194,1712213438613,-500.0,0.000248,2]
[321474195,1712213438622,-800.0,0.000248,2]
[321474196,1712213438631,-500.0,0.000248,2]
[321474197,1712213438640,-500.0,0.000248,2]
[321474198,1712213438650,-500.0,0.000248,2]
[321474199,1712213438659,-23646.2741,0.0002481,2]
[321474200,1712213438668,-36527.0779,0.00024875,2]
[321474201,1712213438677,-42745.58971516,0.000249,2]
[321474202,1712213438689,-160.10691131,0.000249,2]
[321474203,1712213438699,-7500.0,0.000249,2]
[321474204,1712213438710,-187.93435087,0.00024996,2]
[321474205,1712213438719,-313.47574048,0.00024997,2]
[321474206,1712213438729,-4099.24478178,0.00024997,2]
[321474207,1712213438738,-172.02811199,0.00024998,2]
[321474208,1712213438747,-157.77216376,0.00024998,2]
[321474209,1712213438757,-544.23225178,0.00024998,2]